bitfinex/quotes_ETHUSD_20260310
["timestamp","ask_amount","ask_price","bid_price","bid_amount"]
[1773152242892,1.2398958,2018.0,2017.0,1.23946455]
[1773152243462,1.2398958,2018.0,2017.1,0.993]
[1773152243679,1.75272369,2018.0,2017.0,1.23946455]
[1773152243886,0.51282789,2017.6,2016.2,2.23295635]
[1773152244089,0.51282789,2017.6,2016.3,0.49190924]
[1773152244271,0.51282789,2017.6,2016.4,0.993]
[1773152244662,0.51282789,2017.4,2016.0,3.15084348]
[1773152244859,0.51282789,2017.2,2016.0,3.15084348]
[1773152245091,0.51282789,2017.1,2016.0,3.15084348]
[1773152245393,0.51282789,2016.8,2016.0,3.15084348]
[1773152245762,0.51282789,2016.8,2016.0,4.39086253]
[1773152245965,0.51282789,2016.8,2016.0,3.15084348]
[1773152246483,0.51282789,2017.2,2016.0,4.39092164]
[1773152246796,1.23903454,2017.7,2016.0,4.39092164]
[1773152246981,2.6877629,2017.8,2016.0,4.39092164]
[1773152246982,3.92676711,2017.8,2016.3,0.49190924]
[1773152247182,0.51282789,2017.7,2016.4,0.993]
[1773152247385,0.51282789,2017.7,2016.5,0.993]
[1773152247968,0.51282789,2017.7,2016.2,4.19936334]
[1773152248168,0.51282789,2017.7,2016.3,1.04319831]
[1773152248695,1.7518321,2017.8,2016.5,0.49190924]
[1773152248892,0.51282789,2017.7,2016.2,3.7074541]
[1773152249099,1.23909595,2017.6,2016.2,1.23995635]
[1773152249298,0.51282789,2017.2,2016.0,4.39091749]
[1773152249469,0.51282789,2017.2,2016.0,4.39091941]
[1773152249668,0.51282789,2017.2,2016.0,3.15084348]
[1773152249887,0.51282789,2017.2,2016.0,4.39091873]
[1773152250111,5.02191982,2017.8,2016.5,2.46749775]
[1773152250112,0.51282789,2017.8,2016.5,2.46749775]
[1773152250409,0.51282789,2017.7,2016.0,5.38491873]
[1773152250574,0.51282789,2017.5,2016.1,0.01998973]
[1773152250776,2.6877629,2017.8,2016.0,4.39091873]
[1773152250777,0.51282789,2017.2,2016.0,4.39091873]
[1773152251014,0.51282789,2017.0,2016.0,4.39091873]
[1773152251320,0.51282789,2016.9,2016.0,3.15084348]
[1773152251529,0.51282789,2016.9,2016.0,4.39092263]
[1773152251833,0.51282789,2016.9,2016.0,3.15084348]
[1773152251977,0.51282789,2016.8,2016.0,3.15084348]
[1773152252311,0.51282789,2016.8,2016.0,1e-08]
[1773152252312,0.51282789,2016.5,2016.0,1e-08]
[1773152252611,0.51282789,2016.5,2015.1,0.995]
[1773152252612,0.51282789,2016.2,2015.1,0.995]
[1773152252778,0.51282789,2016.2,2015.1,2.23562909]
[1773152253106,1.23981414,2016.5,2015.1,2.23558923]
[1773152253307,1.23981414,2016.5,2015.1,2.72749847]
[1773152253673,0.51282789,2016.6,2015.3,0.50389622]
[1773152254109,1.23955189,2016.9,2015.5,2.97139397]
[1773152254270,0.53160805,2017.0,2015.5,2.97139397]
[1773152254472,1.049,2017.6,2015.9,0.50389622]
[1773152254473,1.77076542,2017.5,2015.9,0.50389622]
[1773152254711,0.53260805,2018.0,2016.1,0.50389622]
[1773152255011,1.77150628,2018.0,2016.6,1.2397104]
[1773152255216,1.77150628,2018.0,2016.6,2.2287104]
[1773152255217,0.53160805,2017.9,2016.6,2.2287104]
[1773152256618,0.53160805,2017.9,2016.6,2.2297104]
[1773152256778,3.70739598,2018.0,2016.2,4.95884161]
[1773152256779,0.53160805,2017.7,2016.3,0.99]
[1773152256982,0.53160805,2017.5,2016.2,0.99]
[1773152257177,0.53160805,2017.5,2016.1,4.95982541]
[1773152257178,0.53160805,2017.5,2016.1,5.94982541]
[1773152257613,0.53160805,2017.5,2016.1,8.41732316]
[1773152257812,1.23906982,2017.7,2016.2,0.50389622]
[1773152258020,0.53160805,2017.9,2016.5,0.50389622]
[1773152258324,1.77052243,2017.9,2016.6,0.01155524]
[1773152258499,1.77052243,2017.9,2016.7,0.04958595]
[1773152258500,1.77052666,2017.9,2016.7,0.04958595]
[1773152258706,1.77053384,2017.9,2016.7,1.04058595]
[1773152258919,1.23985075,2018.0,2016.7,1.54448217]
[1773152259128,2.46749775,2017.9,2016.8,1.23958746]
[1773152259290,0.53260805,2018.0,2016.7,0.04958595]
[1773152259291,0.53160805,2017.5,2016.7,0.04958595]
[1773152259490,0.53160805,2017.5,2016.5,0.04959087]
[1773152260045,0.53160805,2017.9,2016.5,0.55348709]
[1773152260324,0.53160805,2017.9,2016.5,0.50389622]
[1773152260505,5.48534762,2018.7,2017.1,0.50389622]
[1773152260714,0.53160805,2018.7,2017.3,0.50389622]
[1773152260904,1.23838697,2018.8,2016.4,1.74372958]
[1773152260905,2.9991058,2017.9,2016.4,1.74372958]
[1773152261239,0.53160805,2017.9,2016.6,1.74360662]
[1773152261534,1.23886003,2018.0,2016.7,0.50389622]
[1773152261844,1.23886003,2018.0,2016.7,0.55348217]
[1773152261999,0.53160805,2017.8,2016.6,1.2397104]
[1773152262503,0.53160805,2017.7,2016.7,0.04958595]
[1773152262830,0.53160805,2017.7,2016.4,5.9512524]
[1773152262831,2.69215018,2017.9,2016.8,0.04958349]
[1773152263027,3.22375823,2017.9,2016.4,6.45514862]
[1773152263233,0.53160805,2017.9,2016.6,0.50389622]
[1773152263529,1.77021288,2018.4,2016.7,0.55348217]
[1773152263728,0.53160805,2018.3,2016.7,0.50389622]
[1773152264228,0.53160805,2018.3,2016.8,1.49689622]
[1773152264441,2.46749775,2018.0,2016.4,4.9592524]
[1773152264648,0.53160805,2017.6,2016.3,1.23986027]
[1773152264803,0.53160805,2017.6,2016.4,0.04959333]
[1773152265225,1.23934166,2017.2,2016.0,2.23307936]
[1773152266301,0.52358141,2017.1,2016.0,1.24007936]
[1773152266510,0.52358141,2017.0,2016.0,1.24007936]
[1773152266808,2.99107916,2016.8,2015.7,2.23323629]
[1773152267234,0.52358141,2016.8,2015.7,2.23323629]
[1773152267532,1.76286163,2017.3,2015.8,0.48268393]
[1773152268132,1.76283463,2017.4,2015.9,0.48268393]
[1773152268310,0.52358141,2017.3,2015.9,0.48268393]
[1773152268516,0.52358141,2017.3,2016.0,1.47668393]
[1773152268713,7.64923249,2017.8,2016.7,2.95018168]
[1773152268714,0.001,2017.8,2016.7,2.95018168]
[1773152268924,0.001,2017.8,2016.8,0.48268393]
[1773152269117,4.9529605,2019.0,2017.2,1.23934166]
[1773152269118,0.52358141,2018.9,2017.2,1.23934166]
[1773152269304,5.47694894,2018.9,2017.2,1.72202559]
[1773152269721,0.52358141,2018.8,2017.3,0.48268393]
[1773152270323,0.52358141,2018.8,2017.3,0.53225513]
[1773152270618,0.52358141,2018.6,2017.2,1.23934166]
[1773152270818,0.52358141,2018.6,2017.3,0.994]
[1773152271006,0.52358141,2018.6,2017.2,2.23334166]
[1773152271210,1.23854347,2018.5,2017.2,1.23934166]
[1773152271536,0.52358141,2018.3,2017.2,1.23934166]
[1773152271834,4.95417389,2018.7,2017.2,1.23934166]
[1773152271835,0.33574858,2019.1,2017.8,2.46749775]
[1773152272039,1.57392583,2019.1,2017.9,0.994]
[1773152272612,2.09750724,2019.1,2017.5,0.50478619]
[1773152272812,2.99107916,2019.0,2017.6,0.994]
[1773152273350,1.23829808,2018.9,2017.7,1.23903454]
[1773152273546,1.23829808,2018.9,2017.8,0.995]
[1773152273749,4.22934649,2019.0,2017.8,0.995]
[1773152273913,0.52358141,2018.9,2017.7,1.23903454]
[1773152274768,0.33574858,2019.1,2018.0,2.46749775]
[1773152274917,1.57392508,2019.1,2017.8,0.48268393]
[1773152275115,1.57392508,2019.1,2018.1,0.995]
[1773152275116,0.33574858,2019.1,2018.1,0.995]
[1773152275344,0.33574858,2019.1,2017.9,1.23891173]
[1773152275345,1.57392815,2019.1,2017.9,1.23891173]
[1773152275512,1.57392815,2019.1,2017.9,2.23391173]
[1773152275513,0.85932999,2019.1,2017.9,2.23391173]
[1773152276151,0.33574858,2019.1,2017.9,2.71659566]
[1773152276387,1.57392724,2019.1,2017.9,2.71659566]
[1773152276646,1.57394586,2019.1,2017.9,1.23891173]
[1773152276817,0.33574858,2019.1,2018.0,0.996]
[1773152277229,0.33574858,2019.1,2018.0,1.47868393]
[1773152277413,1.57392635,2019.1,2018.1,1.23878895]
[1773152277818,0.33574858,2019.1,2018.1,1.23878895]
[1773152278443,1.57394515,2019.1,2018.1,1.23878895]
[1773152278852,0.33574858,2019.1,2018.1,1.23878895]
[1773152279145,0.001,2018.9,2018.1,1.23878895]
[1773152280344,0.52458141,2018.9,2018.0,0.04955401]
[1773152280662,0.52458141,2018.9,2017.6,0.48268393]
[1773152280663,0.52358141,2018.7,2017.3,0.994]
[1773152281441,0.52358141,2018.1,2017.0,1.24053075]
[1773152281746,0.52358141,2018.1,2017.1,0.04957612]
[1773152282050,0.52358141,2018.1,2017.0,2.23452772]
[1773152282259,0.52358141,2018.1,2017.0,1.24052772]
[1773152283977,2.45543632,2017.6,2016.8,0.0011]
[1773152284151,2.45543632,2017.3,2016.8,0.0011]
[1773152284471,2.92695106,2017.6,2016.5,1.24085773]
[1773152285039,2.92695106,2017.6,2016.5,1.24085699]
[1773152285443,0.47151474,2017.5,2016.5,0.0011]
[1773152285644,0.47151474,2017.5,2016.5,1.24086742]
[1773152285951,1.23921879,2017.4,2016.5,0.0011]
[1773152286151,2.45543632,2017.3,2016.5,0.0011]
[1773152287583,0.47151474,2017.2,2016.5,0.0011]
[1773152287795,1.23921879,2017.4,2016.5,0.0011]
[1773152288089,2.45543632,2017.6,2016.5,0.0011]
[1773152288665,2.92695106,2017.6,2016.5,0.0011]
[1773152288856,2.92695106,2017.3,2016.5,0.0011]
[1773152289070,2.45543632,2017.0,2016.5,0.0011]
[1773152289361,2.92695106,2017.3,2016.5,0.0011]
[1773152289563,1.23906491,2017.7,2016.5,0.0011]
[1773152289564,1.71057965,2017.7,2016.5,0.0011]
[1773152289774,2.92695106,2017.6,2016.5,0.0011]
[1773152289972,4.16610034,2017.6,2016.5,0.0011]
[1773152290774,2.45543632,2017.3,2016.5,0.0011]
[1773152290973,2.45543632,2017.0,2016.5,0.0011]
[1773152291177,0.47151474,2017.2,2016.5,0.0011]
[1773152292000,3.49943632,2017.3,2015.3,0.49361055]
[1773152292001,2.96249707,2016.7,2015.3,0.49361055]
[1773152292206,2.96249707,2016.7,2015.5,1.24148423]
[1773152292420,2.96249707,2017.1,2015.5,1.24148423]
[1773152292693,2.45543632,2017.2,2015.6,0.49251055]
[1773152292896,2.45543632,2017.2,2016.7,0.0011]
[1773152293102,2.28331946,2017.3,2016.7,0.0011]
[1773152293265,1.044,2017.3,2016.7,0.0011]
[1773152293466,2.28328191,2017.3,2016.7,0.0011]
[1773152293689,1.044,2017.3,2016.7,0.0011]
[1773152293965,0.001,2017.4,2016.7,0.0011]
[1773152294183,0.001,2017.4,2016.7,0.04607047]
[1773152294596,0.001,2017.4,2016.7,0.0011]
[1773152295094,0.001,2017.4,2016.7,0.04803402]
[1773152295797,0.001,2017.4,2016.8,0.49251055]
[1773152295970,0.001,2017.4,2017.0,1.23946455]
[1773152297401,8.4536141,2018.1,2017.0,1.23946455]
[1773152297597,1.2388981,2018.0,2017.0,1.23946455]
[1773152298006,4.95491269,2018.2,2016.9,4.9578582]
[1773152298299,1.23864002,2018.4,2017.0,0.49251055]
[1773152298499,4.95397142,2018.6,2017.0,0.49251055]
[1773152298667,0.50706075,2018.7,2017.0,0.49251055]
[1773152298868,0.001,2018.9,2017.3,0.49251055]
[1773152299069,1.23929859,2018.9,2017.5,0.49251055]
[1773152299297,0.001,2018.9,2017.6,0.49251055]
[1773152300068,0.001,2018.9,2017.8,0.49251055]
[1773152301099,0.001,2018.9,2017.9,0.49251055]
[1773152301787,0.001,2018.9,2017.9,1.48351055]
[1773152302098,1.2381141,2019.2,2018.0,1.23885034]
[1773152302300,7.36595348,2019.3,2018.0,1.23885034]
[1773152302301,3.65158889,2019.3,2018.0,1.23885034]
[1773152302502,0.001,2019.4,2018.1,0.49251055]
[1773152302906,1.23899428,2019.4,2018.1,0.49251055]
[1773152303212,0.001,2019.4,2018.3,0.49251055]
[1773152303712,1.74608806,2019.4,2018.0,1.23885034]
[1773152303913,2.45543632,2019.1,2018.0,1.23885034]
[1773152304118,0.001,2019.4,2018.2,1.23872757]
[1773152304413,0.001,2019.4,2018.3,0.49251055]
[1773152305082,0.001,2019.9,2018.8,0.49251055]
[1773152305287,0.001,2019.9,2019.0,0.49251055]
[1773152305499,2.07511667,2020.7,2019.2,0.49251055]
[1773152305819,1.56801856,2020.7,2019.4,0.49251055]
[1773152306177,0.50706075,2020.6,2019.5,1.23793018]
[1773152306395,2.96249707,2020.5,2019.2,1.2381141]
[1773152306687,1.56801856,2020.7,2019.0,1.23819395]
[1773152306688,2.96249707,2020.2,2019.0,1.23819395]
[1773152306892,2.45543632,2019.9,2018.9,2.22825273]
[1773152307409,0.50706075,2020.1,2018.9,2.22825273]
[1773152307904,1.038,2020.6,2018.9,2.72076328]
[1773152307905,1.61159675,2020.6,2018.9,2.72076328]
[1773152308209,2.45543632,2020.4,2018.9,2.72076328]
[1773152308427,2.96249707,2020.1,2018.9,2.22825273]
[1773152308724,2.96249707,2020.1,2018.9,1.23825273]
[1773152309011,1.23743998,2020.3,2018.6,1.23848211]
[1773152309012,2.96249707,2019.8,2018.6,1.23848211]
[1773152309511,0.50706075,2019.8,2018.6,1.28802139]
[1773152309714,2.49775431,2019.9,2018.6,1.78053194]
[1773152310224,2.49775431,2019.9,2018.6,1.73099266]
[1773152310591,4.24254877,2019.9,2018.7,0.04953683]
[1773152310832,2.96249707,2019.8,2018.6,1.23848211]
[1773152311194,0.50706075,2019.8,2018.6,1.23848211]
[1773152311390,1.74450073,2020.4,2018.7,0.49251055]
[1773152311596,0.50706075,2020.1,2018.6,1.23848211]
[1773152312206,0.50706075,2020.5,2018.8,0.49251055]
[1773152312433,1.74437824,2020.5,2018.8,0.49251055]
[1773152312723,0.50706075,2020.4,2019.0,0.49251055]
[1773152312905,0.50706075,2020.4,2019.0,1.47751055]
[1773152314518,0.47445391,2020.2,2019.1,1.23817542]
[1773152315022,1.23743998,2020.3,2019.0,0.985]
[1773152315023,0.47445391,2020.0,2019.0,0.985]
[1773152315197,0.47445391,2020.0,2018.7,1.23842076]
[1773152316598,1.23768503,2019.9,2018.7,1.23842076]
[1773152316815,0.47445391,2019.8,2018.7,1.23842076]
[1773152317337,0.47445391,2019.7,2018.6,1.2384454]
[1773152317537,2.59078321,2019.9,2018.6,1.71104464]
[1773152318535,1.71202942,2020.1,2018.7,0.47259924]
[1773152318704,1.71202942,2020.1,2018.8,1.71095866]
[1773152318900,0.47445391,2020.0,2018.8,1.23835942]
[1773152319106,0.47445391,2020.0,2018.8,1.23945942]
[1773152319308,0.47445391,2019.8,2018.8,1.23945942]
[1773152319526,0.47445391,2019.4,2018.8,0.0011]
[1773152319905,0.47545391,2020.2,2019.1,2.45543632]
[1773152320122,1.71296159,2020.2,2018.9,0.47259924]
[1773152320639,1.71296159,2020.2,2018.8,0.9871]
[1773152320640,0.47445391,2020.1,2018.8,0.9871]
[1773152320825,0.47445391,2019.9,2018.9,1.23829808]
[1773152321140,0.001,2020.2,2018.9,1.23829808]
[1773152321141,0.001,2020.2,2019.1,2.45543632]
[1773152321463,0.001,2020.2,2019.4,0.47259924]
[1773152321733,0.001,2020.2,2019.5,0.987]
[1773152322734,0.001,2020.2,2019.6,1.23786888]
[1773152323229,0.001,2020.2,2019.6,1.28738363]
[1773152323406,8.4344697,2021.1,2019.6,1.28738363]
[1773152323407,4.27140503,2021.7,2019.7,0.47259924]
[1773152323603,0.47445391,2021.0,2019.7,0.47259924]
[1773152324803,0.47445391,2020.8,2019.8,1.23774631]
[1773152325412,2.92545194,2020.3,2019.3,1.23801966]
[1773152325707,0.47445391,2020.6,2019.4,0.04951965]
[1773152325907,0.47445391,2020.9,2019.5,2.45099803]
[1773152326225,0.47445391,2020.8,2019.6,0.04951475]
[1773152326418,2.92545194,2020.8,2019.5,0.47259924]
[1773152326617,1.23702663,2021.0,2019.5,0.47259924]
[1773152326931,2.45099803,2020.6,2019.6,1.23786888]
[1773152327315,2.45099803,2020.6,2019.7,0.0495123]
[1773152327705,0.48722053,2020.7,2019.7,0.0495123]
[1773152327905,0.48722053,2020.7,2019.6,1.23786888]
[1773152328132,3.35712929,2020.7,2019.6,1.23786888]
[1773152328707,0.48722053,2020.6,2019.8,1.23774631]
[1773152328911,4.59439878,2020.6,2019.8,1.23774631]
[1773152329114,2.86990876,2020.5,2019.8,1.23774631]
[1773152329337,2.86990876,2020.5,2019.9,0.0495074]
[1773152329635,1.7243235,2020.9,2019.8,1.23774631]
[1773152329839,0.48722053,2020.7,2019.8,1.23774631]
[1773152330237,2.45173195,2020.7,2019.5,1.23793018]
[1773152330440,0.48722053,2020.5,2019.5,1.23793018]
[1773152330743,1.23737873,2020.4,2019.5,1.23793018]
[1773152331233,1.72454513,2020.5,2019.5,1.23793018]
[1773152331546,2.45173195,2020.4,2019.4,0.986]
[1773152331728,0.48722053,2020.0,2018.9,1.23825833]
[1773152331931,0.48722053,2019.9,2018.9,1.23825833]
[1773152332131,0.48722053,2019.8,2018.8,1.23942393]
[1773152332943,1.72499029,2019.8,2019.2,0.0011]
[1773152333166,2.87404349,2019.7,2019.2,0.0011]
[1773152333319,3.36126402,2019.7,2019.2,0.0011]
[1773152333519,3.36126402,2019.7,2019.0,0.0011]
[1773152333917,2.87404349,2019.6,2019.0,0.0011]
[1773152334143,0.48722053,2019.7,2019.0,0.0011]
[1773152334652,3.36641549,2019.7,2019.0,0.0011]
[1773152335353,4.60422404,2019.7,2019.0,0.0011]
[1773152335563,1.72502908,2019.7,2019.0,0.0011]
[1773152336037,2.87994799,2019.6,2019.0,0.0011]
[1773152336237,1.72506893,2019.7,2019.0,0.0011]
[1773152336509,2.87973497,2019.6,2019.0,0.0011]
[1773152337018,1.23793018,2019.5,2019.0,0.0011]
[1773152337218,2.88268122,2019.4,2019.0,0.0011]
[1773152337850,0.48722053,2019.7,2019.0,0.0011]
[1773152338153,2.88426746,2019.8,2019.0,0.0011]
[1773152338321,2.88426746,2019.7,2019.0,0.0011]
[1773152338521,2.88426746,2019.6,2019.0,0.0011]
[1773152338819,2.88339869,2019.5,2019.0,0.0011]
[1773152339150,4.95039808,2020.1,2019.0,0.0011]
[1773152339151,0.48722053,2020.2,2019.0,0.0011]
[1773152339369,3.91147226,2020.1,2019.0,0.0011]
[1773152339655,2.88447226,2020.0,2019.0,0.0011]
[1773152339828,2.88447226,2020.0,2019.0,0.46444397]
[1773152340223,2.88447226,2019.9,2019.0,0.46444397]
[1773152340429,0.48722053,2020.2,2019.0,0.46444397]
[1773152340639,5.1507243,2020.3,2019.0,0.46444397]
[1773152340854,2.88628295,2020.2,2019.0,0.46444397]
[1773152341054,4.12384402,2020.2,2019.1,1.23817542]
[1773152341256,2.88628295,2020.1,2019.1,1.23817542]
[1773152341556,2.88628295,2020.1,2019.1,1.70151939]
[1773152342348,3.37350348,2020.1,2019.1,1.23817542]
[1773152342934,4.61109414,2020.1,2019.1,1.23817542]
[1773152343129,2.45320873,2019.9,2019.0,0.0011]
[1773152343330,3.37350348,2019.8,2019.0,0.0011]
[1773152343533,0.45204062,2019.5,2018.8,0.0011]
[1773152343752,0.45204062,2019.4,2018.8,0.0011]
[1773152343949,3.33832357,2019.4,2018.8,0.0011]
[1773152344268,3.33832357,2019.4,2018.8,1.23945072]
[1773152344643,2.88628295,2019.3,2018.8,1.23945072]
[1773152344870,1.027,2019.5,2018.8,1.23945072]
[1773152345037,2.88526356,2019.4,2018.8,1.23945072]
[1773152345237,4.12329884,2019.4,2018.8,0.0011]
[1773152345552,2.88526356,2019.3,2018.8,0.0011]
[1773152346133,1.68979066,2019.8,2018.8,0.05063437]
[1773152346332,2.8824786,2019.7,2019.0,0.0011]
[1773152346662,3.33451922,2019.7,2019.0,0.0011]
[1773152346885,2.8824786,2019.7,2019.0,0.0011]
[1773152347530,4.12028736,2019.7,2019.0,0.0011]
[1773152347729,2.8824786,2019.6,2019.0,0.0011]
[1773152347936,0.45204062,2019.5,2019.0,0.0011]
[1773152348166,2.8824786,2019.6,2019.0,0.0011]
[1773152348167,3.9094786,2019.6,2019.0,0.0011]
[1773152348364,2.26484506,2019.7,2019.0,0.0011]
[1773152348556,2.88143001,2019.6,2019.0,0.0011]
[1773152349837,2.26482994,2019.7,2019.0,0.0011]
[1773152350044,2.87854721,2019.6,2019.0,0.0011]
[1773152350550,2.45380525,2019.6,2019.0,0.0011]
[1773152350961,2.71682245,2019.8,2019.0,0.0011]
[1773152351162,3.90356225,2019.7,2019.0,0.0011]
[1773152351372,1.027,2019.7,2019.0,0.0011]
[1773152351539,2.90584587,2019.4,2018.8,0.0011]
[1773152352049,5.97847553,2019.7,2018.8,0.0011]
[1773152352050,2.26485574,2019.7,2018.8,0.0011]
[1773152352376,2.87547698,2019.6,2018.8,0.0011]
[1773152352946,1.027,2019.7,2018.8,0.0011]
[1773152353348,0.45204062,2019.8,2018.8,0.0011]
[1773152353540,1.027,2019.9,2018.8,1.71757968]
[1773152353746,2.87550127,2019.8,2018.8,1.71757968]
[1773152354452,2.87550127,2019.8,2018.9,0.47812026]
[1773152355481,1.68960311,2020.1,2019.0,1.71635701]
[1773152355482,0.45204062,2020.1,2019.0,1.71635701]
[1773152355703,0.45204062,2020.1,2019.0,1.23823675]
[1773152355704,0.45204062,2020.0,2019.0,1.23823675]
[1773152355978,0.45204062,2019.8,2018.9,1.23825113]
[1773152356380,3.90510528,2020.0,2018.9,1.71637139]
[1773152356557,2.87810528,2019.9,2018.9,1.71637139]
[1773152357350,0.001,2020.4,2019.2,2.45380525]
[1773152357550,0.001,2020.4,2019.4,1.23799148]
[1773152357987,0.001,2020.4,2019.7,0.47812026]
[1773152358390,0.001,2020.4,2019.4,1.71611174]
[1773152358598,0.001,2020.4,2019.5,0.47812026]
[1773152359251,0.001,2020.4,2019.7,0.47812026]
[1773152359467,0.001,2020.4,2019.8,1.71586657]
[1773152359795,2.88144104,2020.9,2019.9,0.47812026]
[1773152360092,2.88144104,2020.8,2019.8,1.71586657]
[1773152360261,0.45204062,2020.9,2019.8,1.23774631]
[1773152361087,0.45204062,2020.9,2019.8,1.71586657]
[1773152361273,2.88216776,2020.9,2019.8,1.71586657]
[1773152361498,2.88216776,2020.9,2020.0,1.23762376]
[1773152361848,5.40054841,2021.3,2020.2,0.47812026]
[1773152361849,0.001,2021.3,2020.2,0.47812026]
[1773152362052,0.001,2021.3,2020.1,0.976]
[1773152362053,0.45204062,2021.1,2020.1,0.976]
[1773152362292,1.23784129,2021.3,2020.1,1.45412026]
[1773152362458,1.23785245,2021.3,2020.1,1.45412026]
[1773152362664,2.45380525,2021.2,2020.1,1.45412026]
[1773152362877,1.68987115,2021.3,2020.1,1.45412026]
[1773152363068,1.68987115,2021.3,2020.2,0.47812026]
[1773152363069,0.001,2021.3,2020.2,0.47812026]
[1773152363286,0.45204062,2021.0,2020.1,0.976]
[1773152363487,0.45204062,2021.0,2019.9,1.71576218]
[1773152363776,0.45204062,2021.1,2019.9,1.23764192]
[1773152364295,0.45204062,2021.1,2020.0,0.47812026]
[1773152364461,0.001,2021.3,2020.0,0.47812026]
[1773152364657,1.68987661,2021.3,2020.1,0.47812026]
[1773152364869,0.45304062,2021.3,2020.1,0.47812026]
[1773152365084,1.68988109,2021.3,2020.1,0.47812026]
[1773152365267,1.68986874,2021.3,2020.1,0.47812026]
[1773152365884,1.68986874,2021.3,2020.2,1.23750123]
[1773152366083,1.68986874,2021.3,2020.3,0.47812026]
[1773152366084,0.001,2021.3,2020.3,0.47812026]
[1773152366390,0.001,2021.3,2020.4,0.47812026]
[1773152367259,1.68987523,2021.3,2020.3,0.976]
[1773152367492,1.68987523,2021.3,2020.2,1.23750123]
[1773152367493,2.90584587,2021.1,2020.2,1.23750123]
[1773152367664,2.90584587,2021.1,2020.2,1.28700127]
[1773152367665,0.45204062,2021.1,2020.2,1.28700127]
[1773152367995,1.689052,2021.0,2020.2,1.28700127]
[1773152368158,0.45204062,2020.9,2020.1,1.2375127]
[1773152368363,0.45204062,2020.9,2019.8,0.976]
[1773152368364,2.90584587,2020.7,2019.8,4.95074112]
[1773152368585,1.689052,2021.0,2019.8,4.95074112]
[1773152368893,0.45204062,2021.1,2019.9,0.47812026]
[1773152369097,0.45204062,2021.1,2020.0,0.51110378]
[1773152369465,0.45204062,2021.1,2020.0,0.47812026]
[1773152369665,0.45204062,2021.1,2019.8,4.95074112]
[1773152369866,2.90584587,2020.8,2019.8,4.95074112]
[1773152370062,1.23725626,2020.6,2019.7,1.23774631]
[1773152370263,1.23725626,2020.6,2019.6,0.47812026]
[1773152370499,2.90584587,2020.2,2019.4,2.6804291]
[1773152370710,2.90584587,2019.9,2019.4,1.24244631]
[1773152371016,2.45380525,2019.6,2019.0,0.0011]
[1773152371171,0.45204062,2019.8,2019.0,1.23933448]
[1773152371363,0.45204062,2019.8,2019.5,0.0011]
[1773152371594,0.45204062,2019.8,2019.0,1.28886433]
[1773152371799,0.45204062,2019.8,2019.0,1.23933486]
[1773152372002,1.025,2020.5,2019.2,1.71623436]
[1773152372297,0.45204062,2020.4,2019.3,0.04952211]
[1773152372472,0.45204062,2020.4,2019.2,1.71733436]
[1773152372673,3.47880525,2020.5,2019.3,0.52764237]
[1773152372975,3.47880525,2020.5,2019.3,0.47812026]
[1773152373178,2.45380525,2020.2,2019.2,1.2392141]
[1773152374488,2.45380525,2019.9,2019.2,0.0011]
[1773152374687,1.23756249,2020.1,2019.2,0.0011]
[1773152375201,2.45380525,2019.7,2019.2,0.0011]
[1773152375404,1.025,2019.8,2019.2,0.0011]
[1773152375899,2.45380525,2019.9,2019.2,0.0011]
[1773152376212,3.54667132,2020.0,2019.2,0.0011]
[1773152376370,1.23748436,2020.3,2019.2,0.48194525]
[1773152376570,1.025,2020.3,2019.4,0.48084525]
[1773152376877,1.025,2020.3,2019.3,1.2875749]
[1773152376878,1.025,2020.3,2019.5,0.53036245]
[1773152377324,1.485,2021.2,2019.5,0.53036245]
[1773152377325,1.23691627,2021.2,2019.8,2.45380525]
[1773152377469,1.23795169,2021.1,2020.0,0.48084525]
[1773152377983,0.001,2021.1,2020.2,0.48084525]
[1773152378186,2.45380525,2020.9,2019.9,0.975]
[1773152378515,1.2371338,2020.8,2019.9,1.23768503]
[1773152378715,2.2621338,2020.8,2019.9,1.23768503]
[1773152379311,2.2621338,2020.8,2019.8,1.71857676]
[1773152379774,2.2621338,2020.8,2019.5,1.23793018]
[1773152379775,2.45380525,2020.3,2019.5,1.23793018]
[1773152380407,1.024,2020.7,2019.5,1.71877543]
[1773152380708,2.45380525,2020.5,2019.5,1.23793018]
[1773152381211,2.45380525,2020.2,2019.3,4.9521384]
[1773152381539,1.024,2020.3,2019.3,5.43298365]
[1773152381909,1.024,2020.3,2019.3,0.48084525]
[1773152381910,2.45380525,2020.2,2019.3,0.48084525]
[1773152382223,3.47780525,2020.3,2019.3,0.48084525]
[1773152382518,2.26150123,2020.2,2019.5,1.23793018]
[1773152382729,2.26150123,2020.2,2019.3,1.71888974]
[1773152382939,1.23750123,2020.2,2019.3,1.71888974]
[1773152383232,2.26150123,2020.2,2019.3,1.71888974]
[1773152383716,2.45380525,2020.0,2019.2,1.23918951]
[1773152384283,2.26150123,2020.2,2019.2,1.72003476]
[1773152384681,2.45380525,2019.7,2019.2,0.0011]
[1773152384923,2.45380525,2019.7,2019.0,0.0011]
[1773152385515,1.024,2019.8,2019.0,1.23933244]
[1773152385689,1.024,2019.8,2019.0,1.28845407]
[1773152385893,1.024,2019.8,2019.0,0.0011]
[1773152386211,2.45380525,2019.6,2019.0,0.0011]
[1773152386745,0.41468997,2020.1,2019.0,0.49891368]
[1773152386746,1.23762376,2020.0,2019.0,0.49891368]
[1773152389016,4.9513711,2020.1,2019.1,1.23817542]
[1773152389840,2.45380525,2019.8,2019.0,1.73714961]
[1773152389988,2.45380525,2019.8,2019.0,0.0011]
[1773152390325,2.45380525,2019.5,2019.0,0.0011]
[1773152390745,2.45380525,2019.2,2018.5,0.0011]
[1773152391095,1.23817542,2019.1,2018.5,0.0011]
[1773152391844,2.45380525,2018.9,2018.5,0.0011]
[1773152391986,1.23793018,2019.5,2018.5,0.49891368]
[1773152392191,2.26084723,2019.7,2018.5,0.49891368]
[1773152392723,2.45380525,2019.6,2018.5,0.49891368]
[1773152393433,4.76792767,2019.9,2018.7,0.49781368]
[1773152393623,2.26070748,2019.9,2018.7,0.49781368]
[1773152393929,1.23770748,2019.9,2018.7,0.49781368]
[1773152394129,1.023,2019.9,2018.8,0.49781368]
[1773152394714,0.001,2020.1,2019.1,0.49781368]
[1773152395004,0.001,2020.1,2019.3,0.49781368]
[1773152395393,0.001,2020.1,2019.4,0.49781368]
[1773152396333,2.45480525,2020.1,2019.1,0.49781368]
[1773152396531,0.001,2020.1,2019.1,0.49781368]
[1773152396741,1.024,2020.1,2019.1,0.49781368]
[1773152397232,2.45380525,2019.9,2019.1,0.49781368]
[1773152397419,1.024,2020.1,2019.1,0.49781368]
[1773152397420,4.95071888,2020.0,2019.1,1.73593895]
[1773152397916,0.001,2019.9,2019.1,1.73593895]